fUST/lending_fUST_20240120
["ID","MTS","AMOUNT","RATE_DAILY","PERIOD"]
[312206231,1705685445292,-500.0,0.00029863,2]
[312206233,1705685445301,-5792.13,0.00029863,2]
[312206236,1705685445311,-1725.49,0.00029863,2]
[312206238,1705685445322,-767.33,0.00029863,2]
[312206240,1705685445334,-806.26,0.00029863,2]
[312206242,1705685445346,-8298.13,0.00029863,2]
[312206244,1705685445357,-518.88,0.00029863,2]
[312206247,1705685445367,-500.0,0.00029863,2]
[312206249,1705685445380,-500.0,0.00029863,2]
[312206251,1705685445390,-2310.13,0.00029863,2]
[312206253,1705685445401,-2747.04,0.00029863,2]
[312206255,1705685445411,-905.45,0.00029863,2]
[312206258,1705685445421,-500.0,0.00029863,2]
[312206260,1705685445435,-2719.98,0.00029863,2]
[312206262,1705685445446,-500.0,0.00029863,2]
[312206264,1705685445458,-5340.96,0.00029863,2]
[312206266,1705685445469,-632.39,0.00029863,2]
[312206269,1705685445480,-500.0,0.00029863,2]
[312206271,1705685445490,-524.5,0.00029863,2]
[312206273,1705685445503,-500.0,0.00029863,2]
[312206275,1705685445514,-770.79,0.00029863,2]
[312206277,1705685445525,-961.18,0.00029863,2]
[312206279,1705685445536,-583.92,0.00029863,2]
[312206282,1705685445546,-500.0,0.00029863,2]
[312206284,1705685445557,-664.12,0.00029863,2]
[312206286,1705685445567,-154.76784823,0.0003,2]
[312206288,1705685445578,-465.07086778,0.0003,2]
[312206290,1705685445589,-195.20473695,0.0003,4]
[312206292,1705685445599,-283.06089695,0.0003,3]
[312206294,1705685445609,-5999.99,0.0003,7]
[312206296,1705685445620,-500.0,0.0003,3]
[312206299,1705685445631,-5999.99,0.0003,7]
[312206301,1705685445641,-539.324489,0.0003,3]
[312206303,1705685445652,-200.0,0.0003,2]
[312206305,1705685445663,-243.97478798,0.0003,4]
[312206307,1705685445674,-230.43340321,0.0003,4]
[312206308,1705685445684,-280.92218192,0.0003,30]
[312206309,1705685445695,-688.01285151,0.0003,4]
[312206310,1705685445705,-1200.0,0.0003,4]
[312206311,1705685445715,-185.0,0.0003,2]
[312206312,1705685445725,-681.93949513,0.0003,3]
[312206314,1705685445736,-500.0,0.00030136,4]
[312206317,1705685445749,-505.29629579,0.00030136,4]
[312206319,1705685445760,-353.80787688,0.00030136,4]
[312206321,1705685445770,-433.78102858,0.00030136,4]
[312206323,1705685445781,-500.0,0.00030136,2]
[312206325,1705685445791,-150.0,0.00030136,2]
[312206327,1705685445802,-150.0,0.00030136,2]
[312206351,1705685445910,-150.0,0.00030136,2]
[312206355,1705685445919,-150.0,0.00030136,2]
[312206359,1705685445928,-150.0,0.00030136,2]
[312206362,1705685445937,-150.0,0.00030136,2]
[312206365,1705685445946,-150.0,0.00030136,2]
[312206368,1705685445955,-926.15,0.00030136,2]
[312206371,1705685445964,-1130.79,0.00030136,2]
[312206374,1705685445973,-500.0,0.00030136,2]
[312206377,1705685445982,-544.12,0.00030136,2]
[312206380,1705685445991,-500.0,0.00030136,2]
[312206383,1705685446002,-500.0,0.00030136,2]
[312206387,1705685446011,-5792.13,0.00030136,2]
[312206391,1705685446021,-1725.49,0.00030136,2]
[312206396,1705685446030,-220.59931933,0.00030136,2]
[312206399,1705685446040,-767.33,0.00030136,2]
[312206402,1705685446049,-806.26,0.00030136,2]
[312206404,1705685446058,-8298.13,0.00030136,2]
[312206407,1705685446067,-518.88,0.00030136,2]
[312206411,1705685446077,-500.0,0.00030136,2]
[312206414,1705685446086,-500.0,0.00030136,2]
[312206417,1705685446095,-2310.13,0.00030136,2]
[312206420,1705685446105,-2747.04,0.00030136,2]
[312206423,1705685446114,-905.45,0.00030136,2]
[312206426,1705685446123,-500.0,0.00030136,2]
[312206428,1705685446132,-2719.98,0.00030136,2]
[312206430,1705685446141,-500.0,0.00030136,2]
[312206432,1705685446150,-5340.96,0.00030136,2]
[312206434,1705685446161,-632.39,0.00030136,2]
[312206436,1705685446170,-500.0,0.00030136,2]
[312206438,1705685446179,-524.5,0.00030136,2]
[312206440,1705685446188,-500.0,0.00030136,2]
[312206442,1705685446197,-770.79,0.00030136,2]
[312206444,1705685446207,-961.18,0.00030136,2]
[312206446,1705685446216,-583.92,0.00030136,2]
[312206448,1705685446225,-500.0,0.00030136,2]
[312206450,1705685446234,-153.0,0.00030137,2]
[312206452,1705685446243,-153.0,0.00030137,2]
[312206454,1705685446254,-153.0,0.00030137,2]
[312206456,1705685446262,-153.0,0.00030137,2]
[312206458,1705685446271,-153.0,0.00030137,2]
[312206460,1705685446281,-199.0432224,0.00030137,2]
[312206462,1705685446290,-153.0,0.00030137,2]
[312206464,1705685446299,-153.0,0.00030137,2]
[312206466,1705685446308,-153.0,0.00030137,2]
[312206468,1705685446317,-199.0432224,0.00030137,2]
[312206470,1705685446326,-425.5351148,0.00030137,2]
[312206472,1705685446335,-199.0432224,0.00030137,2]
[312206474,1705685446344,-199.0432224,0.00030137,2]
[312206476,1705685446353,-199.0432224,0.00030137,2]
[312206478,1705685446362,-202.697257,0.00030137,2]
[312206480,1705685446370,-308.099822,0.00030137,2]
[312206482,1705685446379,-500.0,0.00030273,2]
[312206484,1705685446388,-500.0,0.0003041,2]
[312206486,1705685446397,-926.15,0.0003041,2]
[312206488,1705685446406,-1130.79,0.0003041,2]
[312206490,1705685446415,-500.0,0.0003041,2]
[312206492,1705685446424,-544.12,0.0003041,2]
[312206494,1705685446434,-500.0,0.0003041,2]
[312206496,1705685446447,-500.0,0.0003041,2]
[312206498,1705685446456,-5792.13,0.0003041,2]
[312206500,1705685446466,-1725.49,0.0003041,2]
[312206502,1705685446475,-767.33,0.0003041,2]
[312206504,1705685446484,-806.26,0.0003041,2]
[312206506,1705685446493,-8298.13,0.0003041,2]
[312206508,1705685446504,-518.88,0.0003041,2]
[312206510,1705685446514,-500.0,0.0003041,2]
[312206512,1705685446525,-500.0,0.0003041,2]
[312206514,1705685446534,-2310.13,0.0003041,2]
[312206516,1705685446543,-2747.04,0.0003041,2]
[312206518,1705685446552,-905.45,0.0003041,2]
[312206520,1705685446561,-500.0,0.0003041,2]
[312206522,1705685446571,-2719.98,0.0003041,2]
[312206524,1705685446580,-500.0,0.0003041,2]
[312206526,1705685446589,-5340.96,0.0003041,2]
[312206528,1705685446598,-632.39,0.0003041,2]
[312206530,1705685446607,-500.0,0.0003041,2]
[312206532,1705685446616,-524.5,0.0003041,2]
[312206534,1705685446626,-500.0,0.0003041,2]
[312206536,1705685446637,-770.79,0.0003041,2]
[312206538,1705685446646,-961.18,0.0003041,2]
[312206541,1705685446656,-583.92,0.0003041,2]
[312206543,1705685446665,-500.0,0.0003041,2]
[312206546,1705685446676,-500.0,0.00030547,2]
[312206548,1705685446686,-533.0,0.0003066,30]
[312206550,1705685446695,-150.5,0.0003066,30]
[312206552,1705685446704,-533.0,0.0003067,30]
[312206554,1705685446713,-150.5,0.0003067,30]
[312206555,1705685446722,-150.5,0.0003068,30]
[312206558,1705685446733,-243.69,0.0003068,30]
[312206559,1705685446742,-157.43,0.0003068,30]
[312206562,1705685446753,-533.0,0.0003068,30]
[312206564,1705685446762,-150.5,0.0003068,30]
[312206566,1705685446771,-500.0,0.00030684,2]
[312206567,1705685446780,-926.15,0.00030684,2]
[312206569,1705685446788,-1130.79,0.00030684,2]
[312206571,1705685446797,-500.0,0.00030684,2]
[312206573,1705685446806,-544.12,0.00030684,2]
[312206575,1705685446815,-500.0,0.00030684,2]
[312206577,1705685446825,-500.0,0.00030684,2]
[312206579,1705685446834,-5792.13,0.00030684,2]
[312206582,1705685446844,-1725.49,0.00030684,2]
[312206584,1705685446853,-767.33,0.00030684,2]
[312206586,1705685446862,-806.26,0.00030684,2]
[312206587,1705685446870,-8298.13,0.00030684,2]
[312206590,1705685446880,-518.88,0.00030684,2]
[312206592,1705685446889,-500.0,0.00030684,2]
[312206594,1705685446898,-500.0,0.00030684,2]
[312206596,1705685446906,-2310.13,0.00030684,2]
[312206597,1705685446917,-2747.04,0.00030684,2]
[312206600,1705685446926,-905.45,0.00030684,2]
[312206602,1705685446935,-500.0,0.00030684,2]
[312206604,1705685446944,-2719.98,0.00030684,2]
[312206606,1705685446953,-500.0,0.00030684,2]
[312206608,1705685446962,-5340.96,0.00030684,2]
[312206610,1705685446972,-632.39,0.00030684,2]
[312206612,1705685446981,-500.0,0.00030684,2]
[312206613,1705685446991,-524.5,0.00030684,2]
[312206615,1705685447003,-500.0,0.00030684,2]
[312206617,1705685447012,-770.79,0.00030684,2]
[312206619,1705685447023,-961.18,0.00030684,2]
[312206621,1705685447032,-583.92,0.00030684,2]
[312206624,1705685447041,-500.0,0.00030821,2]
[312206625,1705685447052,-408.33012281,0.00030958,2]
[312206627,1705685447064,-926.15,0.00030958,2]
[312206630,1705685447074,-1130.79,0.00030958,2]
[312206631,1705685447083,-500.0,0.00030958,2]
[312206634,1705685447093,-544.12,0.00030958,2]
[312206635,1705685447102,-500.0,0.00030958,2]
[312206638,1705685447112,-500.0,0.00030958,2]
[312206640,1705685447121,-5792.13,0.00030958,2]
[312206642,1705685447131,-1725.49,0.00030958,2]
[312206644,1705685447140,-767.33,0.00030958,2]
[312206646,1705685447150,-806.26,0.00030958,2]
[312206648,1705685447158,-8298.13,0.00030958,2]
[312206650,1705685447167,-518.88,0.00030958,2]
[312206652,1705685447176,-500.0,0.00030958,2]
[312206654,1705685447185,-500.0,0.00030958,2]
[312206656,1705685447194,-2310.13,0.00030958,2]
[312206658,1705685447203,-2747.04,0.00030958,2]
[312206660,1705685447213,-905.45,0.00030958,2]
[312206662,1705685447223,-500.0,0.00030958,2]
[312206664,1705685447231,-2719.98,0.00030958,2]
[312206666,1705685447240,-500.0,0.00030958,2]
[312206667,1705685447250,-5340.96,0.00030958,2]
[312206669,1705685447259,-632.39,0.00030958,2]
[312206671,1705685447268,-500.0,0.00030958,2]
[312206673,1705685447281,-524.5,0.00030958,2]
[312206675,1705685447290,-500.0,0.00030958,2]
[312206677,1705685447299,-770.79,0.00030958,2]
[312206679,1705685447309,-961.18,0.00030958,2]
[312206682,1705685447319,-583.92,0.00030958,2]
[312206684,1705685447328,-308.099822,0.00030959,2]
[312206686,1705685447337,-358.15905079,0.00031,2]
[312206688,1705685447349,-150.11265734,0.00031,4]
[312206690,1705685447358,-500.0,0.00031,3]
[312206692,1705685447367,-500.0,0.00031095,2]
[312206694,1705685447376,-50000.0,0.0003121,7]
[312206696,1705685447385,-926.15,0.00031232,2]
[312206698,1705685447394,-1130.79,0.00031232,2]
[312206700,1705685447403,-500.0,0.00031232,2]
[312206702,1705685447412,-544.12,0.00031232,2]
[312206704,1705685447421,-392.64216811,0.00031232,2]
[312206706,1705685447432,-500.0,0.00031232,2]
[312206708,1705685447444,-5792.13,0.00031232,2]
[312206710,1705685447454,-1725.49,0.00031232,2]
[312206712,1705685447463,-767.33,0.00031232,2]
[312206714,1705685447473,-806.26,0.00031232,2]
[312206716,1705685447483,-8298.13,0.00031232,2]
[312206718,1705685447492,-518.88,0.00031232,2]
[312206720,1705685447501,-500.0,0.00031232,2]
[312206722,1705685447510,-500.0,0.00031232,2]
[312206724,1705685447520,-2310.13,0.00031232,2]
[312206726,1705685447530,-2747.04,0.00031232,2]
[312206728,1705685447539,-905.45,0.00031232,2]
[312206730,1705685447548,-500.0,0.00031232,2]
[312206732,1705685447558,-2719.98,0.00031232,2]
[312206734,1705685447567,-500.0,0.00031232,2]
[312206736,1705685447576,-5340.96,0.00031232,2]
[312206738,1705685447585,-632.39,0.00031232,2]
[312206740,1705685447593,-244.63378573,0.00031232,2]
[312206742,1705685447603,-524.5,0.00031232,2]
[312206744,1705685447612,-500.0,0.00031232,2]
[312206746,1705685447621,-770.79,0.00031232,2]
[312206748,1705685447630,-961.18,0.00031232,2]
[312206750,1705685447640,-583.92,0.00031232,2]
[312206752,1705685447649,-500.0,0.00031369,2]
[312206754,1705685447658,-284.56,0.00031505,2]
[312206756,1705685447667,-284.56,0.00031505,2]
[312206758,1705685447676,-284.56,0.00031505,2]
[312206760,1705685447685,-284.56,0.00031505,2]
[312206762,1705685447694,-284.56,0.00031505,2]
[312206764,1705685447703,-284.56,0.00031505,2]
[312206766,1705685447712,-284.56,0.00031505,2]
[312206768,1705685447720,-284.56,0.00031505,2]
[312206770,1705685447730,-284.56,0.00031505,2]
[312206772,1705685447739,-284.56,0.00031505,2]
[312206774,1705685447750,-926.15,0.00031506,2]
[312206776,1705685447758,-1130.79,0.00031506,2]
[312206778,1705685447767,-500.0,0.00031506,2]
[312206780,1705685447776,-544.12,0.00031506,2]
[312206782,1705685447785,-500.0,0.00031506,2]
[312206784,1705685447795,-5792.13,0.00031506,2]
[312206786,1705685447805,-1725.49,0.00031506,2]
[312206788,1705685447814,-767.33,0.00031506,2]
[312206790,1705685447823,-806.26,0.00031506,2]
[312206792,1705685447832,-8298.13,0.00031506,2]
[312206794,1705685447840,-518.88,0.00031506,2]
[312206795,1705685447850,-500.0,0.00031506,2]
[312206797,1705685447858,-500.0,0.00031506,2]
[312206800,1705685447868,-2310.13,0.00031506,2]
[312206802,1705685447877,-2747.04,0.00031506,2]
[312206804,1705685447886,-500.0,0.00031506,2]
[312206806,1705685447895,-905.45,0.00031506,2]
[312206808,1705685447904,-2719.98,0.00031506,2]
[312206818,1705685447983,-500.0,0.00031506,2]
[312206820,1705685447993,-5340.96,0.00031506,2]
[312206822,1705685448003,-632.39,0.00031506,2]
[312206824,1705685448012,-524.5,0.00031506,2]
[312206826,1705685448021,-500.0,0.00031506,2]
[312206828,1705685448031,-770.79,0.00031506,2]
[312206830,1705685448041,-961.18,0.00031506,2]
[312206832,1705685448050,-583.92,0.00031506,2]
[312206834,1705685448059,-280.0,0.00031631,15]
[312206836,1705685448068,-500.0,0.00031643,2]
[312206838,1705685448078,-926.15,0.0003178,2]
[312206840,1705685448090,-1130.79,0.0003178,2]
[312206842,1705685448099,-500.0,0.0003178,2]
[312206844,1705685448108,-544.12,0.0003178,2]
[312206846,1705685448117,-500.0,0.0003178,2]
[312206848,1705685448126,-5792.13,0.0003178,2]
[312206850,1705685448136,-1725.49,0.0003178,2]
[312206853,1705685448145,-767.33,0.0003178,2]
[312206855,1705685448154,-806.26,0.0003178,2]
[312206857,1705685448163,-8298.13,0.0003178,2]
[312206859,1705685448173,-518.88,0.0003178,2]
[312206860,1705685448183,-500.0,0.0003178,2]
[312206862,1705685448194,-381.76214356,0.0003178,2]
[312206865,1705685448205,-2310.13,0.0003178,2]
[312206866,1705685448214,-2747.04,0.0003178,2]
[312206868,1705685448223,-500.0,0.0003178,2]
[312206871,1705685448233,-905.45,0.0003178,2]
[312206872,1705685448242,-2719.98,0.0003178,2]
[312206874,1705685448251,-500.0,0.0003178,2]
[312206876,1705685448261,-5340.96,0.0003178,2]
[312206878,1705685448270,-632.39,0.0003178,2]
[312206881,1705685448280,-524.5,0.0003178,2]
[312206883,1705685448289,-500.0,0.0003178,2]
[312206885,1705685448298,-770.79,0.0003178,2]
[312206887,1705685448307,-961.18,0.0003178,2]
[312206889,1705685448316,-583.92,0.0003178,2]
[312206891,1705685448327,-308.099822,0.00031781,2]
[312206893,1705685448338,-500.0,0.00031917,2]
[312206895,1705685448347,-319.08679849,0.00032,4]
[312206897,1705685448356,-234.00880226,0.00032,4]
[312206899,1705685448365,-150.0,0.00032,4]
[312206901,1705685448374,-500.0,0.00032,3]
[312206903,1705685448383,-500.0,0.00032,2]
[312206905,1705685448392,-500.0,0.00032,2]
[312206907,1705685448402,-500.0,0.00032,2]
[312206909,1705685448411,-500.0,0.00032,2]
[312206911,1705685448420,-500.0,0.00032,2]
[312206913,1705685448428,-200.836615,0.00032,4]
[312206914,1705685448438,-150.0,0.00032,5]
[312206917,1705685448452,-621.3918949,0.00032004,2]
[312206919,1705685448460,-620.10459146,0.0003201,2]
[312206921,1705685448469,-150.0,0.00032011,2]
[312206923,1705685448478,-150.0,0.00032011,2]
[312206925,1705685448488,-926.15,0.00032054,2]
[312206926,1705685448497,-1130.79,0.00032054,2]
[312206928,1705685448510,-500.0,0.00032054,2]
[312206930,1705685448519,-544.12,0.00032054,2]
[312206933,1705685448529,-5792.13,0.00032054,2]
[312206935,1705685448541,-1725.49,0.00032054,2]
[312206937,1705685448551,-500.0,0.00032054,2]
[312206939,1705685448559,-767.33,0.00032054,2]
[312206941,1705685448569,-806.26,0.00032054,2]
[312206942,1705685448578,-8298.13,0.00032054,2]
[312206945,1705685448587,-518.88,0.00032054,2]
[312206947,1705685448596,-500.0,0.00032054,2]
[312206949,1705685448605,-2310.13,0.00032054,2]
[312206951,1705685448616,-2747.04,0.00032054,2]
[312206952,1705685448625,-500.0,0.00032054,2]
[312206955,1705685448634,-905.45,0.00032054,2]
[312206957,1705685448644,-2719.98,0.00032054,2]
[312206958,1705685448653,-500.0,0.00032054,2]
[312206960,1705685448662,-5340.96,0.00032054,2]
[312206963,1705685448672,-632.39,0.00032054,2]
[312206965,1705685448681,-524.5,0.00032054,2]
[312206967,1705685448690,-500.0,0.00032054,2]
[312206968,1705685448699,-770.79,0.00032054,2]
[312206971,1705685448709,-961.18,0.00032054,2]
[312206973,1705685448718,-583.92,0.00032054,2]
[312206975,1705685448727,-500.0,0.00032191,2]
[312206977,1705685448736,-926.15,0.00032328,2]
[312206979,1705685448745,-1130.79,0.00032328,2]
[312206981,1705685448755,-500.0,0.00032328,2]
[312206983,1705685448764,-544.12,0.00032328,2]
[312206985,1705685448772,-5792.13,0.00032328,2]
[312206987,1705685448781,-1725.49,0.00032328,2]
[312206989,1705685448790,-500.0,0.00032328,2]
[312206991,1705685448800,-767.33,0.00032328,2]
[312206993,1705685448809,-806.26,0.00032328,2]
[312206995,1705685448819,-8298.13,0.00032328,2]
[312206997,1705685448831,-518.88,0.00032328,2]
[312206999,1705685448840,-500.0,0.00032328,2]
[312207001,1705685448849,-2310.13,0.00032328,2]
[312207003,1705685448858,-2747.04,0.00032328,2]
[312207005,1705685448868,-500.0,0.00032328,2]
[312207007,1705685448877,-905.45,0.00032328,2]
[312207009,1705685448886,-2719.98,0.00032328,2]
[312207011,1705685448896,-500.0,0.00032328,2]
[312207013,1705685448904,-5340.96,0.00032328,2]
[312207015,1705685448913,-632.39,0.00032328,2]
[312207017,1705685448926,-524.5,0.00032328,2]
[312207019,1705685448935,-500.0,0.00032328,2]
[312207021,1705685448945,-770.79,0.00032328,2]
[312207023,1705685448954,-961.18,0.00032328,2]
[312207025,1705685448963,-583.92,0.00032328,2]
[312207027,1705685448972,-636.30429841,0.00032465,2]
[312207029,1705685448980,-2613.28648846,0.000325,15]
[312207031,1705685448989,-115924.11494888,0.000325,20]
[312207033,1705685448998,-300.0,0.000325,16]
[312207035,1705685449008,-926.15,0.00032602,2]
[312207037,1705685449017,-1130.79,0.00032602,2]
[312207039,1705685449026,-325.66290991,0.00032602,2]
[312207041,1705685449036,-544.12,0.00032602,2]
[312207043,1705685449045,-1725.49,0.00032602,2]
[312207045,1705685449057,-5792.13,0.00032602,2]
[312207047,1705685449066,-767.33,0.00032602,2]
[312207049,1705685449075,-806.26,0.00032602,2]
[312207051,1705685449084,-8298.13,0.00032602,2]
[312207053,1705685449093,-518.88,0.00032602,2]
[312207055,1705685449102,-500.0,0.00032602,2]
[312207057,1705685449111,-2310.13,0.00032602,2]
[312207059,1705685449120,-2747.04,0.00032602,2]
[312207062,1705685449130,-500.0,0.00032602,2]
[312207064,1705685449139,-905.45,0.00032602,2]
[312207066,1705685449148,-2719.98,0.00032602,2]
[312207068,1705685449157,-367.42379257,0.00032602,2]
[312207070,1705685449167,-5340.96,0.00032602,2]
[312207072,1705685449177,-632.39,0.00032602,2]
[312207074,1705685449186,-524.5,0.00032602,2]
[312207076,1705685449195,-500.0,0.00032602,2]
[312207078,1705685449204,-770.79,0.00032602,2]
[312207080,1705685449214,-961.18,0.00032602,2]
[312207082,1705685449223,-583.92,0.00032602,2]
[312207084,1705685449233,-308.099822,0.00032603,2]
[312207086,1705685449242,-250.0,0.00032876,7]
[312207087,1705685449253,-926.15,0.00032876,2]
[312207090,1705685449263,-1130.79,0.00032876,2]
[312207092,1705685449273,-544.12,0.00032876,2]
[312207094,1705685449284,-1725.49,0.00032876,2]
[312207095,1705685449294,-5792.13,0.00032876,2]
[312207097,1705685449304,-767.33,0.00032876,2]
[312207099,1705685449314,-806.26,0.00032876,2]
[312207101,1705685449324,-8298.13,0.00032876,2]
[312207103,1705685449334,-518.88,0.00032876,2]
[312207106,1705685449344,-500.0,0.00032876,2]
[312207108,1705685449354,-2310.13,0.00032876,2]
[312207110,1705685449363,-2747.04,0.00032876,2]
[312207112,1705685449373,-500.0,0.00032876,2]
[312207114,1705685449382,-905.45,0.00032876,2]
[312207116,1705685449391,-2719.98,0.00032876,2]
[312207118,1705685449401,-5340.96,0.00032876,2]
[312207120,1705685449410,-632.39,0.00032876,2]
[312207122,1705685449420,-524.5,0.00032876,2]
[312207124,1705685449429,-500.0,0.00032876,2]
[312207126,1705685449438,-770.79,0.00032876,2]
[312207128,1705685449452,-961.18,0.00032876,2]
[312207130,1705685449462,-583.92,0.00032876,2]
[312207132,1705685449471,-640.35590766,0.00032876,7]
[312207134,1705685449481,-386.32476631,0.00033,2]
[312207136,1705685449491,-6762.26543772,0.00033,4]
[312207138,1705685449500,-1000.0,0.00033,33]
[312207140,1705685449512,-500.0,0.00033,3]
[312207142,1705685449522,-660.32205299,0.00033137,2]
[312207144,1705685449531,-1000.0,0.00033137,10]
[312207146,1705685449540,-926.15,0.0003315,3]
[312207148,1705685449549,-1130.79,0.0003315,3]
[312207150,1705685449558,-544.12,0.0003315,3]
[312207152,1705685449567,-1725.49,0.0003315,3]
[312207154,1705685449577,-5792.13,0.0003315,3]
[312207156,1705685449586,-767.33,0.0003315,3]
[312207158,1705685449595,-806.26,0.0003315,3]
[312207160,1705685449605,-8298.13,0.0003315,3]
[312207162,1705685449614,-518.88,0.0003315,3]
[312207164,1705685449623,-500.0,0.0003315,3]
[312207166,1705685449633,-2310.13,0.0003315,3]
[312207168,1705685449643,-2747.04,0.0003315,3]
[312207170,1705685449652,-500.0,0.0003315,3]
[312207172,1705685449662,-905.45,0.0003315,3]
[312207174,1705685449671,-2719.98,0.0003315,3]
[312207176,1705685449681,-5340.96,0.0003315,3]
[312207178,1705685449690,-632.39,0.0003315,3]
[312207179,1705685449700,-524.5,0.0003315,3]
[312207180,1705685449709,-500.0,0.0003315,3]
[312207181,1705685449718,-770.79,0.0003315,3]
[312207182,1705685449728,-961.18,0.0003315,3]
[312207183,1705685449737,-583.92,0.0003315,3]
[312207184,1705685449747,-700.0,0.00033174,2]
[312207185,1705685449761,-1000.0,0.00033195,10]
[312207186,1705685449770,-1000.0,0.00033195,10]
[312207187,1705685449779,-251.56964516,0.00033195,2]
[312207188,1705685449788,-620.66043413,0.00033195,2]
[312207189,1705685449797,-151.0,0.00033221,2]
[312207191,1705685449808,-926.15,0.00033424,3]
[312207193,1705685449817,-1130.79,0.00033424,3]
[312207195,1705685449826,-544.12,0.00033424,3]
[312207197,1705685449836,-1725.49,0.00033424,3]
[312207199,1705685449845,-5792.13,0.00033424,3]
[312207208,1705685449922,-767.33,0.00033424,3]
[312207210,1705685449932,-806.26,0.00033424,3]
[312207212,1705685449943,-8298.13,0.00033424,3]
[312207214,1705685449952,-518.88,0.00033424,3]
[312207216,1705685449961,-464.05513679,0.00033424,3]
[312207218,1705685449971,-2310.13,0.00033424,3]
[312207219,1705685449980,-2747.04,0.00033424,3]
[312207221,1705685449990,-500.0,0.00033424,3]
[312207224,1705685449999,-905.45,0.00033424,3]
[312207226,1705685450011,-2719.98,0.00033424,3]
[312207228,1705685450022,-5340.96,0.00033424,3]
[312207229,1705685450031,-632.39,0.00033424,3]
[312207231,1705685450041,-524.5,0.00033424,3]
[312207233,1705685450050,-436.22663609,0.00033424,3]
[312207235,1705685450059,-770.79,0.00033424,3]
[312207237,1705685450068,-961.18,0.00033424,3]
[312207239,1705685450077,-583.92,0.00033424,3]
[312207241,1705685450086,-308.099822,0.00033425,2]
[312207243,1705685450095,-926.22473571,0.00033698,3]
[312207245,1705685450104,-1130.8325359,0.00033698,3]
[312207247,1705685450113,-544.35737173,0.00033698,3]
[312207249,1705685450123,-1725.58124054,0.00033698,3]
[312207251,1705685450133,-5792.25136362,0.00033698,3]
[312207253,1705685450141,-767.38363906,0.00033698,3]
[312207255,1705685450151,-806.27523465,0.00033698,3]
[312207257,1705685450162,-8298.24894502,0.00033698,3]
[312207259,1705685450171,-519.03969418,0.00033698,3]
[312207261,1705685450180,-2310.34923432,0.00033698,3]
[312207263,1705685450189,-2747.10880077,0.00033698,3]
[312207265,1705685450199,-256.94941864,0.00033698,3]
[312207267,1705685450209,-905.56597004,0.00033698,3]
[312207269,1705685450218,-2720.1803552,0.00033698,3]
[312207271,1705685450228,-5340.98054682,0.00033698,3]
[312207273,1705685450238,-632.53334759,0.00033698,3]
[312207275,1705685450247,-524.59634199,0.00033698,3]
[312207277,1705685450260,-770.98891855,0.00033698,3]
[312207279,1705685450269,-961.19836849,0.00033698,3]
[312207281,1705685450279,-584.09868591,0.00033698,3]
[312207283,1705685450289,-1098.06332805,0.00034,3]
[312207285,1705685450298,-1000.0,0.00034,34]
[312207287,1705685450307,-300.0,0.00034,17]
[312207289,1705685450316,-500.0,0.00034,3]